Workbook

Sheet 經濟訂購量
A1: 經濟採購分析
A3: 操作指引：
B4: 您可按垂直捲軸，依序往下捲動各項內容，或依您所需選按各項按鈕。
A5: 模式目的：
B6: (1).依據存貨基本資料，求算最適經濟訂購量水準。
B7: (2).以圖表顯示各類成本變化。
A8: 應用時機：
B9: 企業機構進行最適存貨訂購決策分析。
A10: 模式假設：
B11: 根據存貨管理理論，本經濟訂購量模式具下列基本假設：
B12: (1).材料單價不變。
B13: (2).材料使用十分平均。
B14: (3).依據前項假設，經濟採購量之公式為：
A19: 基本資料：
B20: 請於下表儲存格(字形為紅色者)中，輸入各項實際之數值：
B21: 基本資料：
B22: 本期間估計之存貨需要量 | F22: 12000
B23: 存貨每單位成本 | F23: 80
B24: 每一訂單之訂購成本 | F24: 1000
B25: 存貨持有成本率(平均存貨投資之百分比 ) | F25: 0.2
A27: 運算解答：
B28: 依據上列基本資料，可得出下列解答：
B29: 解答
B30: 經濟訂購量 | C30: =SQRT((2*需要量*每次訂購成本)/(每單位存貨成本*存貨投資百分比)) -> 1224.744871
B31: 訂購成本 | C31: =(需要量/經濟採購量)*每次訂購成本 -> 9797.958971
B32: 持有成本 | C32: =(經濟採購量/2)*每單位存貨成本*存貨投資百分比 -> 9797.958971
B33: 總變動成本 | C33: =C31+C32 -> 19595.91794
B34: 總成本 | C34: =總變動成本+經濟採購量*每單位存貨成本 -> 117575.5077
A36: 繪圖資料：
B37: 下列表格係用以繪製圖表之用，使用者勿需進行修改。
B38: 繪圖資料
B39: 訂購次數 | C39: =2*G39 -> 19.59591794 | D39: =1.75*G39 -> 17.1464282 | E39: =1.5*G39 -> 14.69693846 | F39: =1.25*G39 -> 12.24744871 | G39: =需要量/經濟採購量 -> 9.797958971 | H39: =7/8*G39 -> 8.5732141 | I39: =6/8*G39 -> 7.348469228 | J39: =5/8*G39 -> 6.123724357 | K39: =4/8*G39 -> 4.898979486
B40: 訂購量 | C40: =需要量/訂購次數 -> 612.3724357 | D40: 699.8542122 | E40: 816.4965809 | F40: 979.7958971 | G40: 1224.744871 | H40: 1399.708424 | I40: 1632.993162 | J40: 1959.591794 | K40: 2449.489743
B41: 訂購成本 | C41: =訂購次數*每次訂購成本 -> 19595.91794 | D41: 17146.4282 | E41: 14696.93846 | F41: 12247.44871 | G41: 9797.958971 | H41: 8573.2141 | I41: 7348.469228 | J41: 6123.724357 | K41: 4898.979486
B42: 持有成本 | C42: =訂購量/2*每單位存貨成本*存貨投資百分比 -> 4898.979486 | D42: 5598.833698 | E42: 6531.972647 | F42: 7838.367177 | G42: 9797.958971 | H42: 11197.6674 | I42: 13063.94529 | J42: 15676.73435 | K42: 19595.91794
B43: 總變動成本 | C43: =訂購成本_PC+持有成本_HC -> 24494.89743 | D43: 22745.2619 | E43: 21228.9111 | F43: 20085.81589 | G43: 19595.91794 | H43: 19770.8815 | I43: 20412.41452 | J43: 21800.45871 | K43: 24494.89743
I54: `
